fUSD/lending_fUSD_20240222
["ID","MTS","AMOUNT","RATE_DAILY","PERIOD"]
[314873840,1708605053193,-500.0,0.0003315,4]
[314873841,1708605053202,-2332.82,0.0003315,4]
[314873842,1708605053211,-1151.29,0.0003315,4]
[314873843,1708605053220,-500.0,0.0003315,4]
[314873844,1708605053230,-500.0,0.0003315,4]
[314873845,1708605053239,-1231.8,0.0003315,4]
[314873846,1708605053247,-500.0,0.0003315,4]
[314873847,1708605053257,-1200.32,0.0003315,4]
[314873848,1708605053266,-500.0,0.0003315,4]
[314873849,1708605053276,-1105.8,0.0003315,4]
[314873850,1708605053284,-500.0,0.0003315,4]
[314873851,1708605053294,-6650.75,0.0003315,4]
[314873852,1708605053303,-500.0,0.0003315,2]
[314873853,1708605053312,-500.0,0.0003315,4]
[314873854,1708605053321,-564.28,0.0003315,4]
[314873855,1708605053330,-3183.06,0.0003315,4]
[314873856,1708605053339,-500.0,0.0003315,4]
[314873857,1708605053348,-1402.79,0.0003315,4]
[314873858,1708605053357,-500.0,0.0003315,4]
[314873859,1708605053366,-352.0,0.00033151,2]
[314873860,1708605053375,-170.75,0.00033155,2]
[314873861,1708605053384,-944.9109678,0.000332,5]
[314873862,1708605053393,-151.0,0.00033225,2]
[314873863,1708605053402,-155.0,0.00033246,2]
[314873864,1708605053411,-170.66,0.00033272,2]
[314873865,1708605053420,-300.0,0.00033287,2]
[314873866,1708605053429,-1232.401862,0.000333,2]
[314873867,1708605053438,-162.72309137,0.00033318,2]
[314873868,1708605053447,-170.75,0.0003332,2]
[314873869,1708605053457,-233.45391699,0.00033324,2]
[314873870,1708605053466,-589.79662286,0.00033324,22]
[314873871,1708605053475,-944.9109678,0.0003335,5]
[314873872,1708605053485,-317.60619111,0.00033365,2]
[314873873,1708605053494,-152.0,0.00033373,3]
[314873874,1708605053503,-135710.4179118,0.00033414,2]
[314873875,1708605053512,-2212.3654572,0.00033414,2]
[314873876,1708605053521,-511.47,0.00033414,4]
[314873877,1708605053775,-153.45,0.00033419,2]
[314873878,1708605053834,-162.45994033,0.00033423,2]
[314873879,1708605053844,-4981.76421879,0.00033423,2]
[314873880,1708605053854,-511.47,0.00033423,4]
[314873881,1708605053863,-511.47,0.00033423,4]
[314873882,1708605053874,-511.47,0.00033423,4]
[314873883,1708605053883,-3273.69971043,0.00033424,2]
[314873884,1708605053893,-179.69168534,0.00033424,4]
[314873885,1708605053902,-865.92,0.00033424,4]
[314873886,1708605053912,-200.0,0.00033424,2]
[314873887,1708605053921,-500.0,0.00033424,4]
[314873888,1708605053931,-500.0,0.00033424,4]
[314873889,1708605053940,-500.0,0.00033424,4]
[314873890,1708605053949,-877.74,0.00033424,4]
[314873891,1708605053959,-500.0,0.00033424,4]
[314873892,1708605053970,-500.0,0.00033424,4]
[314873893,1708605053979,-500.0,0.00033424,4]
[314873894,1708605053988,-500.0,0.00033424,4]
[314873895,1708605053998,-500.0,0.00033424,4]
[314873896,1708605054009,-500.0,0.00033424,4]
[314873897,1708605054019,-500.0,0.00033424,4]
[314873898,1708605054029,-500.0,0.00033424,4]
[314873899,1708605054038,-500.0,0.00033424,4]
[314873900,1708605054047,-500.0,0.00033424,4]
[314873901,1708605054057,-500.0,0.00033424,4]
[314873902,1708605054066,-500.0,0.00033424,4]
[314873903,1708605054075,-500.0,0.00033424,4]
[314873904,1708605054085,-500.0,0.00033424,4]
[314873905,1708605054096,-500.0,0.00033424,4]
[314873906,1708605054106,-561.14,0.00033424,4]
[314873907,1708605054115,-500.0,0.00033424,4]
[314873908,1708605054125,-500.0,0.00033424,4]
[314873909,1708605054134,-500.0,0.00033424,4]
[314873910,1708605054144,-500.0,0.00033424,4]
[314873911,1708605054153,-500.0,0.00033424,4]
[314873912,1708605054163,-500.0,0.00033424,4]
[314873913,1708605054175,-500.0,0.00033424,4]
[314873914,1708605054185,-368.95362354,0.00033424,4]
[314873915,1708605054193,-500.0,0.00033424,4]
[314873916,1708605054202,-500.0,0.00033424,4]
[314873917,1708605054211,-500.0,0.00033424,4]
[314873918,1708605054222,-500.0,0.00033424,4]
[314873919,1708605054232,-502.17,0.00033424,4]
[314873920,1708605054243,-500.0,0.00033424,4]
[314873921,1708605054253,-519.75,0.00033424,4]
[314873922,1708605054263,-525.71416077,0.00033424,4]
[314873923,1708605054274,-500.0,0.00033424,4]
[314873924,1708605054283,-500.0,0.00033424,4]
[314873925,1708605054292,-500.0,0.00033424,4]
[314873926,1708605054301,-500.0,0.00033424,4]
[314873927,1708605054311,-500.0,0.00033424,4]
[314873928,1708605054320,-556.32055067,0.00033424,4]
[314873929,1708605054329,-500.0,0.00033424,4]
[314873930,1708605054339,-500.0,0.00033424,4]
[314873931,1708605054348,-500.0,0.00033424,4]
[314873932,1708605054358,-505.66,0.00033424,4]
[314873933,1708605054367,-500.0,0.00033424,4]
[314873934,1708605054377,-500.0,0.00033424,4]
[314873935,1708605054386,-500.0,0.00033424,4]
[314873936,1708605054395,-500.0,0.00033424,4]
[314873937,1708605054404,-500.0,0.00033424,4]
[314873938,1708605054414,-500.0,0.00033424,4]
[314873939,1708605054423,-399.46,0.00033424,4]
[314873940,1708605054432,-500.0,0.00033424,4]
[314873941,1708605054441,-500.0,0.00033424,4]
[314873942,1708605054451,-500.0,0.00033424,4]
[314873943,1708605054460,-537.13751687,0.00033424,4]
[314873944,1708605054469,-500.0,0.00033424,4]
[314873945,1708605054478,-448.85648332,0.00033424,4]
[314873946,1708605054487,-500.0,0.00033424,4]
[314873947,1708605054497,-511.93672585,0.00033424,4]
[314873948,1708605054506,-500.0,0.00033424,4]
[314873949,1708605054515,-500.0,0.00033424,4]
[314873950,1708605054526,-1249.16,0.00033424,4]
[314873951,1708605054536,-500.0,0.00033424,4]
[314873952,1708605054546,-500.0,0.00033424,4]
[314873953,1708605054555,-500.0,0.00033424,4]
[314873954,1708605054565,-500.0,0.00033424,4]
[314873955,1708605054574,-500.0,0.00033424,4]
[314873956,1708605054583,-500.0,0.00033424,4]
[314873957,1708605054593,-500.0,0.00033424,4]
[314873958,1708605054602,-500.0,0.00033424,4]
[314873959,1708605054611,-522.07548628,0.00033424,4]
[314873960,1708605054621,-500.0,0.00033424,4]
[314873961,1708605054630,-647.37579969,0.00033424,4]
[314873962,1708605054639,-500.0,0.00033424,4]
[314873963,1708605054650,-500.0,0.00033424,4]
[314873964,1708605054660,-500.0,0.00033424,4]
[314873965,1708605054669,-500.0,0.00033424,4]
[314873966,1708605054678,-500.0,0.00033424,4]
[314873967,1708605054688,-500.0,0.00033424,4]
[314873968,1708605054698,-500.0,0.00033424,4]
[314873969,1708605054708,-500.0,0.00033424,4]
[314873970,1708605054718,-500.0,0.00033424,4]
[314873971,1708605054729,-500.0,0.00033424,4]
[314873972,1708605054739,-500.0,0.00033424,4]
[314873973,1708605054749,-500.0,0.00033424,4]
[314873974,1708605054759,-500.0,0.00033424,4]
[314873975,1708605054769,-500.0,0.00033424,4]
[314873976,1708605054779,-500.0,0.00033424,4]
[314873977,1708605054788,-500.0,0.00033424,4]
[314873978,1708605054797,-500.0,0.00033424,4]
[314873979,1708605054806,-500.0,0.00033424,4]
[314873980,1708605054815,-500.0,0.00033424,4]
[314873981,1708605054825,-500.0,0.00033424,4]
[314873982,1708605054834,-500.0,0.00033424,4]
[314873983,1708605054843,-286.76260251,0.00033424,4]
[314873984,1708605054853,-500.0,0.00033424,4]
[314873985,1708605054862,-621.83,0.00033424,4]
[314873986,1708605054872,-500.0,0.00033424,4]
[314873987,1708605054881,-500.0,0.00033424,4]
[314873988,1708605054891,-500.0,0.00033424,4]
[314873989,1708605054900,-500.0,0.00033424,4]
[314873990,1708605054909,-500.0,0.00033424,4]
[314873991,1708605054919,-500.0,0.00033424,4]
[314873992,1708605054928,-500.0,0.00033424,4]
[314873993,1708605054937,-500.0,0.00033424,4]
[314873994,1708605054946,-500.0,0.00033424,4]
[314873995,1708605054955,-500.0,0.00033424,4]
[314873996,1708605054965,-500.0,0.00033424,4]
[314873997,1708605054974,-500.0,0.00033424,4]
[314873998,1708605054983,-500.0,0.00033424,4]
[314873999,1708605054992,-814.32,0.00033424,4]
[314874000,1708605055001,-500.0,0.00033424,4]
[314874001,1708605055010,-500.0,0.00033424,4]
[314874002,1708605055020,-175.41950339,0.00033424,4]
[314874003,1708605055029,-500.0,0.00033424,4]
[314874004,1708605055039,-500.0,0.00033424,4]
[314874005,1708605055049,-943.02,0.00033424,4]
[314874006,1708605055059,-500.0,0.00033424,4]
[314874007,1708605055070,-1401.66,0.00033424,4]
[314874008,1708605055081,-500.0,0.00033424,4]
[314874009,1708605055090,-870.87,0.00033424,4]
[314874010,1708605055101,-500.0,0.00033424,4]
[314874011,1708605055111,-500.0,0.00033424,4]
[314874012,1708605055121,-500.0,0.00033424,4]
[314874013,1708605055132,-500.0,0.00033424,4]
[314874014,1708605055142,-547.84910359,0.00033424,4]
[314874015,1708605055151,-896.69,0.00033424,4]
[314874016,1708605055161,-850.8,0.00033424,4]
[314874017,1708605055171,-500.0,0.00033424,4]
[314874018,1708605055182,-500.0,0.00033424,4]
[314874019,1708605055191,-500.0,0.00033424,4]
[314874020,1708605055200,-500.0,0.00033424,4]
[314874021,1708605055209,-500.0,0.00033424,4]
[314874022,1708605055218,-500.0,0.00033424,4]
[314874023,1708605055228,-500.0,0.00033424,4]
[314874024,1708605055237,-500.0,0.00033424,4]
[314874025,1708605055246,-500.0,0.00033424,4]
[314874026,1708605055255,-500.0,0.00033424,4]
[314874027,1708605055264,-500.0,0.00033424,4]
[314874028,1708605055273,-669.5,0.00033424,4]
[314874029,1708605055282,-508.78,0.00033424,4]
[314874030,1708605055292,-500.0,0.00033424,4]
[314874031,1708605055301,-500.0,0.00033424,4]
[314874032,1708605055310,-500.0,0.00033424,4]
[314874033,1708605055319,-501.83,0.00033424,4]
[314874034,1708605055328,-500.0,0.00033424,4]
[314874035,1708605055337,-513.36,0.00033424,4]
[314874036,1708605055346,-770.16,0.00033424,4]
[314874037,1708605055355,-703.37,0.00033424,4]
[314874038,1708605055364,-500.0,0.00033424,4]
[314874039,1708605055373,-500.0,0.00033424,4]
[314874040,1708605055382,-500.0,0.00033424,4]
[314874041,1708605055391,-239.71274449,0.00033424,4]
[314874042,1708605055400,-500.0,0.00033424,4]
[314874043,1708605055409,-1026.24,0.00033424,4]
[314874044,1708605055419,-585.77,0.00033424,4]
[314874045,1708605055428,-500.0,0.00033424,4]
[314874046,1708605055437,-545.08,0.00033424,4]
[314874047,1708605055447,-500.0,0.00033424,4]
[314874048,1708605055457,-500.0,0.00033424,4]
[314874049,1708605055467,-500.0,0.00033424,4]
[314874050,1708605055477,-1000.0,0.00033424,7]
[314874051,1708605055486,-524.14,0.00033424,4]
[314874052,1708605055495,-500.0,0.00033424,4]
[314874053,1708605055505,-631.87,0.00033424,4]
[314874054,1708605055514,-500.0,0.00033424,4]
[314874055,1708605055523,-605.21464127,0.00033424,4]
[314874056,1708605055533,-500.0,0.00033424,4]
[314874057,1708605055543,-500.0,0.00033424,4]
[314874058,1708605055553,-849.89,0.00033424,4]
[314874059,1708605055562,-500.0,0.00033424,4]
[314874060,1708605055572,-500.0,0.00033424,4]
[314874061,1708605055582,-500.0,0.00033424,4]
[314874062,1708605055591,-500.0,0.00033424,4]
[314874063,1708605055602,-564.45,0.00033424,4]
[314874064,1708605055611,-746.43,0.00033424,4]
[314874065,1708605055621,-500.0,0.00033424,4]
[314874066,1708605055630,-500.0,0.00033424,4]
[314874067,1708605055640,-500.0,0.00033424,4]
[314874068,1708605055653,-605.04,0.00033424,4]
[314874069,1708605055664,-500.0,0.00033424,4]
[314874070,1708605055675,-500.0,0.00033424,4]
[314874071,1708605055686,-500.0,0.00033424,4]
[314874072,1708605055695,-665.65,0.00033424,4]
[314874073,1708605055706,-751.06,0.00033424,4]
[314874074,1708605055717,-500.0,0.00033424,4]
[314874075,1708605055730,-702.56,0.00033424,4]
[314874076,1708605055740,-500.0,0.00033424,4]
[314874077,1708605055751,-500.0,0.00033424,4]
[314874078,1708605055760,-528.54,0.00033424,4]
[314874079,1708605055769,-500.0,0.00033424,4]
[314874080,1708605055779,-556.73,0.00033424,4]
[314874081,1708605055789,-500.0,0.00033424,4]
[314874082,1708605055799,-500.0,0.00033424,4]
[314874083,1708605055809,-552.29,0.00033424,4]
[314874084,1708605055819,-500.0,0.00033424,4]
[314874085,1708605055829,-784.94,0.00033424,4]
[314874086,1708605055839,-500.0,0.00033424,4]
[314874087,1708605055848,-646.21,0.00033424,4]
[314874088,1708605055857,-705.65,0.00033424,4]
[314874089,1708605055867,-500.0,0.00033424,4]
[314874090,1708605055876,-731.6,0.00033424,4]
[314874091,1708605055885,-500.0,0.00033424,4]
[314874092,1708605055894,-500.0,0.00033424,4]
[314874093,1708605055903,-698.42,0.00033424,4]
[314874094,1708605055912,-737.08,0.00033424,4]
[314874095,1708605055922,-500.0,0.00033424,4]
[314874096,1708605055931,-704.7,0.00033424,4]
[314874097,1708605055941,-500.0,0.00033424,4]
[314874098,1708605055950,-500.0,0.00033424,4]
[314874099,1708605055959,-500.0,0.00033424,4]
[314874100,1708605055968,-687.38,0.00033424,4]
[314874101,1708605055977,-580.54,0.00033424,4]
[314874102,1708605055987,-500.0,0.00033424,4]
[314874103,1708605055996,-500.0,0.00033424,4]
[314874104,1708605056005,-1013.62,0.00033424,4]
[314874105,1708605056014,-500.0,0.00033424,4]
[314874106,1708605056024,-500.0,0.00033424,4]
[314874107,1708605056033,-500.0,0.00033424,4]
[314874108,1708605056043,-500.0,0.00033424,2]
[314874109,1708605056054,-1079.18,0.00033424,4]
[314874110,1708605056065,-518.66,0.00033424,4]
[314874111,1708605056075,-619.18,0.00033424,4]
[314874112,1708605056086,-500.0,0.00033424,4]
[314874113,1708605056094,-500.0,0.00033424,4]
[314874114,1708605056104,-500.0,0.00033424,4]
[314874115,1708605056113,-500.0,0.00033424,4]
[314874116,1708605056122,-500.0,0.00033424,4]
[314874117,1708605056133,-500.0,0.00033424,2]
[314874118,1708605056143,-769.76,0.00033424,4]
[314874119,1708605056152,-1007.23,0.00033424,4]
[314874120,1708605056232,-500.0,0.00033424,4]
[314874121,1708605056243,-500.0,0.00033424,4]
[314874122,1708605056252,-500.0,0.00033424,4]
[314874123,1708605056262,-500.0,0.00033424,4]
[314874124,1708605056272,-700.11,0.00033424,4]
[314874125,1708605056280,-502.21,0.00033424,4]
[314874126,1708605056289,-500.0,0.00033424,4]
[314874127,1708605056298,-500.0,0.00033424,4]
[314874128,1708605056307,-500.0,0.00033424,2]
[314874129,1708605056316,-500.0,0.00033424,4]
[314874130,1708605056325,-500.0,0.00033424,4]
[314874131,1708605056334,-535.61,0.00033424,4]
[314874132,1708605056343,-632.36,0.00033424,4]
[314874133,1708605056354,-684.6,0.00033424,4]
[314874134,1708605056364,-500.0,0.00033424,4]
[314874135,1708605056374,-500.0,0.00033424,4]
[314874136,1708605056383,-500.0,0.00033424,4]
[314874137,1708605056392,-500.0,0.00033424,4]
[314874138,1708605056401,-500.0,0.00033424,4]
[314874139,1708605056411,-500.0,0.00033424,2]
[314874140,1708605056424,-724.72,0.00033424,4]
[314874141,1708605056433,-607.82,0.00033424,4]
[314874142,1708605056442,-597.9,0.00033424,4]
[314874143,1708605056451,-500.0,0.00033424,2]
[314874144,1708605056461,-882.95,0.00033424,4]
[314874145,1708605056473,-500.0,0.00033424,4]
[314874146,1708605056482,-500.0,0.00033424,4]
[314874147,1708605056491,-500.0,0.00033424,4]
[314874148,1708605056502,-661.99,0.00033424,4]
[314874149,1708605056511,-697.17,0.00033424,4]
[314874150,1708605056522,-827.6,0.00033424,4]
[314874151,1708605056532,-507.9,0.00033424,4]
[314874152,1708605056542,-576.22,0.00033424,4]
[314874153,1708605056551,-781.48,0.00033424,4]
[314874154,1708605056560,-500.0,0.00033424,4]
[314874155,1708605056569,-1118.85,0.00033424,4]
[314874156,1708605056578,-500.0,0.00033424,4]
[314874157,1708605056587,-500.0,0.00033424,4]
[314874158,1708605056597,-500.0,0.00033424,4]
[314874159,1708605056606,-500.0,0.00033424,4]
[314874160,1708605056616,-727.09,0.00033424,4]
[314874161,1708605056625,-500.0,0.00033424,4]
[314874162,1708605056636,-500.0,0.00033424,4]
[314874163,1708605056648,-500.0,0.00033424,4]
[314874164,1708605056658,-500.0,0.00033424,4]
[314874165,1708605056667,-500.0,0.00033424,4]
[314874166,1708605056676,-500.0,0.00033424,4]
[314874167,1708605056686,-789.75,0.00033424,4]
[314874168,1708605056695,-500.0,0.00033424,4]
[314874169,1708605056704,-500.0,0.00033424,4]
[314874170,1708605056714,-500.0,0.00033424,4]
[314874171,1708605056724,-500.0,0.00033424,4]
[314874172,1708605056733,-607.79,0.00033424,4]
[314874173,1708605056743,-500.0,0.00033424,4]
[314874174,1708605056752,-964.18,0.00033424,4]
[314874175,1708605056761,-500.0,0.00033424,4]
[314874176,1708605056770,-1142.53,0.00033424,4]
[314874177,1708605056780,-500.0,0.00033424,4]
[314874178,1708605056789,-750.51,0.00033424,4]
[314874179,1708605056798,-626.74,0.00033424,4]
[314874180,1708605056807,-500.0,0.00033424,4]
[314874181,1708605056817,-500.0,0.00033424,4]
[314874182,1708605056827,-562.71,0.00033424,4]
[314874183,1708605056836,-501.72,0.00033424,4]
[314874184,1708605056846,-500.0,0.00033424,4]
[314874185,1708605056855,-537.63,0.00033424,4]
[314874186,1708605056865,-968.27,0.00033424,4]
[314874187,1708605056874,-845.75,0.00033424,4]
[314874188,1708605056883,-500.0,0.00033424,4]
[314874189,1708605056893,-500.0,0.00033424,4]
[314874190,1708605056902,-1044.05,0.00033424,4]
[314874191,1708605056911,-623.71,0.00033424,4]
[314874192,1708605056921,-710.45,0.00033424,4]
[314874193,1708605056930,-1163.04,0.00033424,2]
[314874194,1708605056939,-675.53,0.00033424,4]
[314874195,1708605056948,-500.0,0.00033424,4]
[314874196,1708605056957,-500.0,0.00033424,4]
[314874197,1708605056967,-781.75,0.00033424,4]
[314874198,1708605056976,-500.0,0.00033424,4]
[314874199,1708605056985,-768.77,0.00033424,4]
[314874200,1708605056993,-501.22,0.00033424,4]
[314874201,1708605057002,-500.0,0.00033424,4]
[314874202,1708605057011,-963.0,0.00033424,4]
[314874203,1708605057020,-500.0,0.00033424,4]
[314874204,1708605057029,-844.1,0.00033424,4]
[314874205,1708605057038,-500.0,0.00033424,4]
[314874206,1708605057047,-998.62,0.00033424,4]
[314874207,1708605057056,-867.92,0.00033424,4]
[314874208,1708605057065,-500.0,0.00033424,4]
[314874209,1708605057074,-500.0,0.00033424,4]
[314874210,1708605057084,-588.13733895,0.00033424,4]
[314874211,1708605057093,-500.0,0.00033424,4]
[314874212,1708605057101,-500.0,0.00033424,4]
[314874213,1708605057110,-526.46,0.00033424,4]
[314874214,1708605057119,-500.0,0.00033424,4]
[314874215,1708605057128,-584.51714389,0.00033424,4]
[314874216,1708605057138,-796.69,0.00033424,4]
[314874217,1708605057147,-793.57,0.00033424,4]
[314874218,1708605057156,-500.0,0.00033424,4]
[314874219,1708605057165,-935.73,0.00033424,4]
[314874220,1708605057174,-500.0,0.00033424,4]
[314874221,1708605057183,-608.56,0.00033424,4]
[314874222,1708605057192,-697.13,0.00033424,4]
[314874223,1708605057201,-500.0,0.00033424,4]
[314874224,1708605057210,-500.0,0.00033424,4]
[314874225,1708605057219,-1241.26,0.00033424,4]
[314874226,1708605057228,-500.0,0.00033424,4]
[314874227,1708605057237,-500.0,0.00033424,4]
[314874228,1708605057247,-571.37,0.00033424,4]
[314874229,1708605057256,-500.0,0.00033424,4]
[314874230,1708605057265,-500.0,0.00033424,4]
[314874231,1708605057275,-500.0,0.00033424,4]
[314874232,1708605057283,-1389.73,0.00033424,4]
[314874233,1708605057292,-368.9497991,0.00033424,4]
[314874234,1708605057301,-500.0,0.00033424,4]
[314874235,1708605057311,-500.0,0.00033424,4]
[314874236,1708605057319,-563.89,0.00033424,4]
[314874237,1708605057328,-500.0,0.00033424,4]
[314874238,1708605057337,-500.0,0.00033424,4]
[314874239,1708605057346,-895.11,0.00033424,4]
[314874240,1708605057355,-525.23,0.00033424,4]
[314874241,1708605057364,-500.0,0.00033424,4]
[314874242,1708605057373,-500.0,0.00033424,4]
[314874243,1708605057382,-671.26,0.00033424,4]
[314874244,1708605057391,-500.0,0.00033424,4]
[314874245,1708605057400,-500.0,0.00033424,4]
[314874246,1708605057409,-503.64,0.00033424,4]
[314874247,1708605057418,-564.9,0.00033424,4]
[314874248,1708605057428,-500.0,0.00033424,4]
[314874249,1708605057437,-500.0,0.00033424,4]
[314874250,1708605057446,-687.12,0.00033424,4]
[314874251,1708605057456,-500.0,0.00033424,4]
[314874252,1708605057465,-639.73,0.00033424,4]
[314874253,1708605057475,-500.0,0.00033424,4]
[314874254,1708605057485,-500.0,0.00033424,4]
[314874255,1708605057494,-500.0,0.00033424,4]
[314874256,1708605057503,-872.7,0.00033424,4]
[314874257,1708605057512,-2597.64,0.00033424,4]
[314874258,1708605057522,-589.84,0.00033424,4]
[314874259,1708605057532,-500.0,0.00033424,4]
[314874260,1708605057541,-4071.1,0.00033424,4]
[314874261,1708605057550,-568.68,0.00033424,4]
[314874262,1708605057559,-540.9,0.00033424,4]
[314874263,1708605057568,-206.87,0.00033424,4]
[314874264,1708605057577,-500.0,0.00033424,4]
[314874265,1708605057586,-559.69,0.00033424,4]
[314874266,1708605057595,-4040.2,0.00033424,4]
[314874267,1708605057605,-500.0,0.00033424,4]
[314874268,1708605057614,-466.91374464,0.00033424,4]
[314874269,1708605057623,-638.08,0.00033424,4]
[314874270,1708605057632,-2906.13,0.00033424,4]
[314874271,1708605057642,-696.29,0.00033424,4]
[314874272,1708605057653,-500.0,0.00033424,4]
[314874273,1708605057662,-1430.27,0.00033424,4]
[314874274,1708605057671,-1085.47,0.00033424,4]
[314874275,1708605057681,-768.99,0.00033424,4]
[314874276,1708605057690,-500.0,0.00033424,4]
[314874277,1708605057699,-500.0,0.00033424,4]
[314874278,1708605057709,-500.0,0.00033424,4]
[314874279,1708605057718,-5041.44,0.00033424,4]
[314874280,1708605057729,-500.0,0.00033424,4]
[314874281,1708605057739,-500.0,0.00033424,4]
[314874282,1708605057748,-500.0,0.00033424,4]
[314874283,1708605057757,-895.54,0.00033424,4]
[314874284,1708605057766,-500.0,0.00033424,4]
[314874285,1708605057776,-606.35,0.00033424,4]
[314874286,1708605057785,-1142.99,0.00033424,4]
[314874287,1708605057795,-936.79,0.00033424,4]
[314874288,1708605057804,-500.0,0.00033424,4]
[314874289,1708605057814,-3156.69,0.00033424,4]
[314874290,1708605057823,-924.73,0.00033424,4]
[314874291,1708605057832,-500.0,0.00033424,4]
[314874292,1708605057842,-500.0,0.00033424,4]
[314874293,1708605057851,-500.0,0.00033424,4]
[314874294,1708605057860,-500.0,0.00033424,4]
[314874295,1708605057870,-500.0,0.00033424,4]
[314874296,1708605057879,-2485.39,0.00033424,4]
[314874297,1708605057889,-749.02,0.00033424,4]
[314874298,1708605057898,-500.0,0.00033424,4]
[314874299,1708605057907,-2440.22,0.00033424,4]
[314874300,1708605057916,-500.0,0.00033424,4]
[314874301,1708605057925,-8539.25,0.00033424,4]
[314874302,1708605057935,-1446.96,0.00033424,4]
[314874303,1708605057944,-500.0,0.00033424,4]
[314874304,1708605057954,-509.85,0.00033424,4]
[314874305,1708605057963,-500.0,0.00033424,4]
[314874306,1708605057972,-961.76,0.00033424,4]
[314874307,1708605057981,-500.99,0.00033424,4]
[314874308,1708605057990,-3953.53,0.00033424,4]
[314874309,1708605057999,-3774.61,0.00033424,4]
[314874310,1708605058008,-500.0,0.00033424,4]
[314874311,1708605058017,-2108.45,0.00033424,4]
[314874312,1708605058026,-1172.54,0.00033424,4]
[314874313,1708605058035,-1110.03,0.00033424,4]
[314874314,1708605058044,-542.13,0.00033424,4]
[314874315,1708605058053,-500.0,0.00033424,4]
[314874316,1708605058062,-721.25,0.00033424,4]
[314874317,1708605058071,-500.0,0.00033424,4]
[314874318,1708605058080,-2241.65,0.00033424,4]
[314874319,1708605058089,-37214.87,0.00033424,4]
[314874320,1708605058098,-500.0,0.00033424,4]
[314874321,1708605058106,-1002.58,0.00033424,4]
[314874322,1708605058116,-2325.63,0.00033424,4]
[314874323,1708605058126,-500.0,0.00033424,4]
[314874324,1708605058135,-4257.1,0.00033424,4]
[314874325,1708605058144,-829.37,0.00033424,4]
[314874326,1708605058153,-11520.73,0.00033424,4]
[314874327,1708605058162,-500.0,0.00033424,4]
[314874328,1708605058171,-612.91,0.00033424,4]
[314874329,1708605058180,-576.34,0.00033424,4]
[314874330,1708605058189,-1556.29,0.00033424,4]
[314874331,1708605058198,-3002.82,0.00033424,4]
[314874332,1708605058207,-2330.01,0.00033424,4]
[314874333,1708605058216,-672.14,0.00033424,4]
[314874334,1708605058225,-726.72,0.00033424,4]
[314874335,1708605058234,-513.24,0.00033424,4]
[314874336,1708605058243,-500.0,0.00033424,4]
[314874337,1708605058251,-500.0,0.00033424,4]
[314874338,1708605058261,-831.08,0.00033424,4]
[314874339,1708605058269,-500.0,0.00033424,4]